fUSD/lending_fUSD_20250607
["ID","MTS","AMOUNT","RATE_DAILY","PERIOD"]
[364906562,1749289843894,-500.0,0.000209,2]
[364906563,1749289843903,-600.0,0.000209,2]
[364906564,1749289843913,-1000.0,0.000209,2]
[364906565,1749289843922,-600.0,0.000209,2]
[364906566,1749289843931,-1000.0,0.000209,2]
[364906567,1749289843941,-600.0,0.000209,2]
[364906568,1749289843950,-1000.0,0.000209,2]
[364906569,1749289843962,-600.0,0.000209,2]
[364906570,1749289843974,-1000.0,0.000209,2]
[364906571,1749289843983,-600.0,0.000209,2]
[364906572,1749289843993,-1000.0,0.000209,2]
[364906573,1749289844003,-600.0,0.000209,2]
[364906574,1749289844014,-1000.0,0.000209,2]
[364906575,1749289844023,-600.0,0.000209,2]
[364906576,1749289844034,-1000.0,0.000209,2]
[364906577,1749289844044,-600.0,0.000209,2]
[364906578,1749289844055,-600.0,0.000209,2]
[364906579,1749289844066,-600.0,0.000209,2]
[364906580,1749289844076,-600.0,0.000209,2]
[364906581,1749289844086,-600.0,0.000209,2]
[364906582,1749289844096,-1000.0,0.000209,2]
[364906583,1749289844106,-600.0,0.000209,2]
[364906584,1749289844118,-600.0,0.000209,2]
[364906585,1749289844128,-1000.0,0.000209,2]
[364906586,1749289844139,-600.0,0.000209,2]
[364906587,1749289844151,-600.0,0.000209,2]
[364906588,1749289844160,-1000.0,0.000209,2]
[364906589,1749289844171,-600.0,0.000209,2]
[364906590,1749289844180,-600.0,0.000209,2]
[364906591,1749289844190,-500.0,0.000209,2]
[364906592,1749289844200,-1000.0,0.000209,2]
[364906593,1749289844210,-600.0,0.000209,2]
[364906594,1749289844221,-500.0,0.000209,2]
[364906595,1749289844231,-1000.0,0.000209,2]
[364906596,1749289844242,-1000.0,0.000209,2]
[364906597,1749289844251,-365.1737934,0.000209,2]
[364906598,1749289844263,-600.0,0.000209,2]
[364906599,1749289844274,-600.0,0.000209,2]
[364906600,1749289844286,-1300.0,0.000209,2]
[364906601,1749289844297,-500.0,0.000209,2]
[364906602,1749289844307,-600.0,0.000209,2]
[364906603,1749289844316,-1300.0,0.000209,2]
[364906604,1749289844326,-600.0,0.000209,2]
[364906605,1749289844337,-1300.0,0.000209,2]
[364906606,1749289844347,-600.0,0.000209,2]
[364906607,1749289844358,-1300.0,0.000209,2]
[364906608,1749289844368,-600.0,0.000209,2]
[364906609,1749289844378,-1300.0,0.000209,2]
[364906610,1749289844387,-600.0,0.000209,2]
[364906611,1749289844397,-1300.0,0.000209,2]
[364906612,1749289844407,-1300.0,0.000209,2]
[364906613,1749289844416,-1300.0,0.000209,2]
[364906614,1749289844426,-1300.0,0.000209,2]
[364906615,1749289844436,-1300.0,0.000209,2]
[364906616,1749289844446,-500.0,0.000209,2]
[364906617,1749289844455,-1300.0,0.000209,2]
[364906618,1749289844465,-164.96451261,0.000209,2]
[364906619,1749289844475,-1300.0,0.000209,2]
[364906620,1749289844484,-500.0,0.000209,2]
[364906621,1749289844494,-1300.0,0.000209,2]
[364906622,1749289844504,-307.06813229,0.000209,2]
[364906623,1749289844514,-271.25709803,0.000209,2]
[364906624,1749289844523,-500.0,0.000209,2]
[364906625,1749289844533,-600.0,0.000209,2]
[364906626,1749289844543,-1300.0,0.000209,2]
[364906627,1749289844553,-600.0,0.000209,2]
[364906628,1749289844563,-600.0,0.000209,2]
[364906629,1749289844573,-600.0,0.000209,2]
[364906630,1749289844583,-543.48922463,0.000209,2]
[364906631,1749289844594,-600.0,0.000209,2]
[364906632,1749289844605,-500.0,0.000209,2]
[364906633,1749289844616,-600.0,0.000209,2]
[364906634,1749289844626,-500.0,0.000209,2]
[364906635,1749289844636,-600.0,0.000209,2]
[364906636,1749289844645,-500.0,0.000209,2]
[364906637,1749289844656,-500.0,0.000209,2]
[364906638,1749289844667,-500.0,0.000209,2]
[364906639,1749289844676,-526.42825822,0.000209,2]
[364906640,1749289844686,-600.0,0.000209,2]
[364906641,1749289844696,-500.0,0.000209,2]
[364906642,1749289844707,-500.0,0.000209,2]
[364906643,1749289844718,-600.0,0.000209,2]
[364906644,1749289844728,-500.0,0.000209,2]
[364906645,1749289844739,-500.0,0.000209,2]
[364906646,1749289844749,-600.0,0.000209,2]
[364906647,1749289844759,-600.0,0.000209,2]
[364906648,1749289844769,-500.0,0.000209,2]
[364906649,1749289844779,-600.0,0.000209,2]
[364906650,1749289844790,-500.0,0.000209,2]
[364906651,1749289844800,-600.0,0.000209,2]
[364906652,1749289844811,-500.0,0.000209,2]
[364906653,1749289844821,-500.0,0.000209,2]
[364906654,1749289844832,-500.0,0.000209,2]
[364906655,1749289844843,-600.0,0.000209,2]
[364906656,1749289844853,-600.0,0.000209,2]
[364906657,1749289844863,-500.0,0.000209,2]
[364906658,1749289844873,-600.0,0.000209,2]
[364906659,1749289844884,-600.0,0.000209,2]
[364906660,1749289844894,-500.0,0.000209,2]
[364906661,1749289844905,-600.0,0.000209,2]
[364906662,1749289844915,-600.0,0.000209,2]
[364906663,1749289844926,-501.95866493,0.000209,2]
[364906664,1749289844936,-500.0,0.000209,2]
[364906665,1749289844946,-600.0,0.000209,2]
[364906666,1749289844956,-164.73071426,0.000209,2]
[364906667,1749289844970,-500.0,0.000209,2]
[364906668,1749289844981,-600.0,0.000209,2]
[364906669,1749289844991,-161.0810251,0.000209,2]
[364906670,1749289845002,-500.0,0.000209,2]
[364906671,1749289845011,-600.0,0.000209,2]
[364906672,1749289845022,-600.0,0.000209,2]
[364906673,1749289845032,-500.0,0.000209,2]
[364906674,1749289845042,-600.0,0.000209,2]
[364906675,1749289845052,-698.83304713,0.000209,2]
[364906677,1749289845062,-600.0,0.000209,2]
[364906678,1749289845072,-500.0,0.000209,2]
[364906679,1749289845083,-600.0,0.000209,2]
[364906680,1749289845093,-600.0,0.000209,2]
[364906681,1749289845103,-600.0,0.000209,2]
[364906682,1749289845113,-600.0,0.000209,2]
[364906683,1749289845123,-600.0,0.000209,2]
[364906684,1749289845132,-600.0,0.000209,2]
[364906685,1749289845144,-600.0,0.000209,2]
[364906686,1749289845154,-600.0,0.000209,2]
[364906687,1749289845164,-600.0,0.000209,2]
[364906688,1749289845174,-600.0,0.000209,2]
[364906689,1749289845184,-600.0,0.000209,2]
[364906690,1749289845196,-600.0,0.000209,2]
[364906691,1749289845206,-600.0,0.000209,2]
[364906692,1749289845216,-600.0,0.000209,2]
[364906693,1749289845228,-600.0,0.000209,2]
[364906694,1749289845239,-600.0,0.000209,2]
[364906695,1749289845249,-600.0,0.000209,2]
[364906696,1749289845260,-500.0,0.000209,2]
[364906697,1749289845270,-600.0,0.000209,2]
[364906698,1749289845280,-500.0,0.000209,2]
[364906699,1749289845290,-952.12340229,0.000209,2]
[364906700,1749289845454,-69211.76255161,0.000209,30]
[364906701,1749289845489,-800.0,0.000209,4]
[364906702,1749289845499,-19884.72030738,0.00020961,2]
[364906703,1749289845510,-180.05,0.00020986,2]
[364906704,1749289845520,-19713.61549896,0.00021,2]
[364906705,1749289845530,-1159.35063879,0.00021,2]
[364906706,1749289845541,-191.34507138,0.00021,2]
[364906707,1749289845551,-300.0,0.00021,2]
[364906708,1749289845561,-833.33110275,0.00021012,2]
[364906709,1749289845572,-3000.0,0.00021012,2]
[364906710,1749289845583,-1989.29,0.00021029,2]
[364906711,1749289845593,-1500.0,0.00021068,2]
[364906712,1749289845602,-1500.0,0.00021068,2]
[364906713,1749289845612,-1500.0,0.00021068,2]
[364906714,1749289845624,-1500.0,0.00021068,2]
[364906715,1749289845634,-1528.54555694,0.00021068,2]
[364906716,1749289845643,-1000.0,0.00021095,2]
[364906717,1749289845653,-246.01,0.00021187,2]
[364906718,1749289845665,-423.07,0.00021269,2]
[364906719,1749289845675,-159.63510569,0.00021329,2]
[364906720,1749289845686,-2500.0,0.00021392,2]
[364906721,1749289845695,-19884.72030738,0.00021519,2]
[364906722,1749289845706,-3500.0,0.0002156,2]
[364906723,1749289845716,-263.74,0.00021606,2]
[364906724,1749289845726,-2000.0,0.00021616,2]
[364906725,1749289845735,-2000.0,0.00021616,2]
[364906726,1749289845745,-2000.0,0.00021616,2]
[364906727,1749289845755,-2000.0,0.00021616,2]
[364906728,1749289845764,-927.36,0.00021644,2]
[364906729,1749289845774,-231.0,0.00021757,2]
[364906730,1749289845784,-2351.0,0.00021794,2]
[364906731,1749289845794,-515.86954475,0.00021918,2]
[364906732,1749289845804,-500.0,0.00021918,2]
[364906733,1749289845814,-150.0,0.00021918,2]
[364906734,1749289845825,-581.90993355,0.00021918,2]
[364906735,1749289845835,-3000.0,0.0002194,2]
[364906736,1749289845844,-414.52,0.00021945,30]
[364906737,1749289845854,-350.39756868,0.00021945,2]
[364906738,1749289845865,-256.41133079,0.00022,12]
[364906739,1749289845874,-248.79147866,0.00022,2]
[364906740,1749289845885,-769.71850944,0.00022,7]
[364906741,1749289845895,-2653.49568353,0.00022,15]
[364906742,1749289845904,-500.0,0.00022,2]
[364906743,1749289845914,-500.0,0.00022,2]
[364906744,1749289845924,-587.0,0.00022009,2]
[364906745,1749289845934,-211.92,0.00022028,2]
[364906746,1749289845944,-171.05,0.00022075,2]
[364906747,1749289845954,-17939.42451334,0.00022077,2]
[364906750,1749289846259,-1359.72724767,0.00022077,2]
[364906751,1749289846635,-249.46,0.00019178,2]
[364906752,1749289846645,-585.56854637,0.00022077,2]
[364906753,1749289846655,-8767.21634248,0.000221,2]
[364906754,1749289846664,-117.99448218,0.00022108,2]
[364906783,1749289847022,-162.95459083,0.00020304,2]
[364906784,1749289847031,-3160.27890917,0.00020304,2]
[364906785,1749289853067,-151.0,0.00017441,2]
[364906798,1749290174846,338.15,0.00013699,2]
[364906811,1749290526617,-170.30429656,0.00017418,2]
[364906812,1749290528870,-189.09,0.00017418,2]
[364906813,1749290530413,-175.49300185,0.00017418,2]
[364906814,1749290532053,-167.69683637,0.00017418,2]
[364906815,1749290534158,-197.97244107,0.00017418,2]
[364906816,1749290716880,170.21,0.00016005,2]
[364906818,1749291004311,-151.0,0.00017353,2]
[364906819,1749291004339,-44.75433641,0.00017359,2]
[364906820,1749291009478,-205.24566359,0.00017359,2]
[364906821,1749291009503,-18.66590822,0.00017365,2]
[364906822,1749291012713,-132.33409178,0.00017365,2]
[364906823,1749291012737,-137.22590822,0.00017378,2]
[364906824,1749291014298,-13.77409178,0.00017378,2]
[364906825,1749291014321,-151.0,0.0001739,2]
[364906826,1749291014343,-12.25416482,0.00017406,2]
[364906827,1749291020564,-151.0,0.00017348,2]
[364906828,1749291020590,-94.22978783,0.00017406,2]
[364906829,1749291022306,-143.51604735,0.00017406,2]
[364906839,1749291037417,-151.0,0.00017394,2]
[364906840,1749291037432,-167.68482798,0.0001761,2]
[364906841,1749291037442,-1781.91517202,0.00018119,2]
[364906842,1749291037630,-8.44482798,0.00018119,2]
[364906843,1749291037642,-250.0,0.00019089,2]
[364906844,1749291037653,-192.00799701,0.00019178,2]
[364906845,1749291037662,-199.57,0.00019178,2]
[364906846,1749291037672,-588.26607377,0.00019255,4]
[364906851,1749291039785,-211.73392623,0.00019255,4]
[364906852,1749291039795,-167.18707374,0.00019674,2]
[364906853,1749291040173,-17.43292626,0.00019674,2]
[364906854,1749291040183,-200.0,0.00019718,2]
[364906855,1749291040193,-150.0,0.00019936,2]
[364906856,1749291040203,-1200.0,0.00019999,2]
[364906857,1749291040213,-3983.89787374,0.0002,2]
[364906859,1749291040225,-875.30212626,0.0002,2]
[364906860,1749291040236,-300.0,0.0002,2]
[364906861,1749291040246,-200.0,0.00020001,2]
[364906862,1749291040256,-300.0,0.00020014,2]
[364906863,1749291040265,-13458.97162346,0.00020017,2]
[364906872,1749291045805,-300.0,0.00020016,2]
[364906873,1749291045815,-889.23010292,0.00020017,2]
[364907098,1749291245138,354.65,0.00013699,2]
[364907099,1749291246018,-162.371147,0.00017448,2]
[364907104,1749291652914,155.00000266,0.000179,30]
[364907105,1749291688743,-294.21498342,0.000173,2]
[364907106,1749291691080,-271.73129478,0.000173,2]
[364907150,1749291693455,-296.34420104,0.000173,2]
[364907169,1749291696066,-200.0,0.000173,2]
[364907170,1749291698204,-288.19912805,0.000173,2]
[364907171,1749291700459,-286.38450104,0.000173,2]
[364907172,1749291703046,-325.99994409,0.000173,2]
[364907173,1749291706177,-192.09517978,0.000173,2]
[364907174,1749291708247,170.21,0.00014414,2]
[364907175,1749291708497,-151.0,0.000173,2]
[364907176,1749291711405,-228.5055621,0.000173,2]
[364907177,1749291713686,-153.68422273,0.00017213,2]
[364907178,1749291716407,-306.23616095,0.00017213,2]
[364907179,1749291717967,-276.77142632,0.00017213,2]
[364907180,1749291720711,-27.196077,0.00017213,2]
[364907181,1749291720736,-358.033923,0.000173,2]
[364907182,1749291722820,-261.39576756,0.000173,2]
[364907183,1749291725699,-151.31886737,0.000173,2]
[364907184,1749291728771,-151.0,0.000173,2]
[364907185,1749291730484,-516.6687316,0.000173,2]
[364907186,1749291732808,-192.00005591,0.000173,2]
[364907187,1749291736375,-300.60106915,0.000173,2]
[364907188,1749291738705,-167.69,0.000173,2]
[364907189,1749291741344,-236.43583654,0.000173,2]
[364907190,1749291743366,-324.19881102,0.000173,2]
[364907191,1749291747505,-233.47180927,0.000173,2]
[364907192,1749291749358,-273.15409668,0.000173,2]
[364907193,1749291751899,193.57919244,0.00017,2]
[364907194,1749291751930,24686.18828556,0.00017,2]
[364907195,1749291754512,-323.68862881,0.00017,2]
[364907196,1749291758401,-186.88879322,0.00017,2]
[364907197,1749291762319,-170.61,0.00017,2]
[364907198,1749291765640,-151.0,0.00017,2]
[364907199,1749291768773,-195.80780132,0.00017,2]
[364907200,1749291771947,-216.82149945,0.00017,2]
[364907201,1749291775086,-441.5234536,0.00017,2]
[364907202,1749291785459,-151.7267117,0.000166,2]
[364907203,1749291787561,-193.96991892,0.000166,2]
[364907204,1749291789691,-151.0,0.000166,2]
[364907205,1749291791849,-200.0,0.000166,2]
[364907206,1749291796986,-262.89,0.000166,2]
[364907207,1749291798547,-304.76078478,0.000166,2]
[364907208,1749291801253,-193.5935424,0.000166,2]
[364907209,1749291802960,-162.9968046,0.000166,2]
[364907210,1749291805335,-336.46751508,0.000166,2]
[364907211,1749291807317,-151.0,0.000166,2]
[364907212,1749291809774,-156.25,0.000166,2]
[364907213,1749291811422,-287.07143422,0.000166,2]
[364907214,1749291814052,-173.224352,0.000166,2]
[364907215,1749291816168,-177.80822872,0.000166,2]
[364907216,1749291818976,-267.77126462,0.000166,2]
[364907217,1749291823445,-151.26219868,0.000166,2]
[364907218,1749291825716,-292.77322553,0.000166,2]
[364907219,1749291830221,-153.18414788,0.000166,2]
[364907220,1749291833597,-153.81585563,0.000166,2]
[364907221,1749291836039,-192.31822031,0.000166,2]
[364907222,1749291837839,-337.84250663,0.000166,2]
[364907223,1749291862666,-194.81840216,0.000163,2]
[364907224,1749291865462,-193.38213883,0.000163,2]
[364907225,1749291867772,-151.0,0.000163,2]
[364907226,1749291870183,-158.12641717,0.000163,2]
[364907227,1749291872442,-171.51263129,0.000163,2]
[364907228,1749291877234,-153.5862129,0.000163,2]
[364907229,1749291879679,-300.0,0.00016599,2]
[364907230,1749291879703,-30.97664632,0.000166,2]
[364907231,1749291881350,-178.9177775,0.000163,2]
[364907232,1749291883711,-357.19142845,0.000163,2]
[364907233,1749291885369,-390.64420908,0.000163,2]
[364907234,1749291889347,-322.95528624,0.000163,2]
[364907235,1749291892021,-177.69199089,0.000163,2]
[364907236,1749291894199,-155.19615827,0.000163,2]
[364907237,1749291899270,-151.0,0.000163,2]
[364907238,1749291902010,-274.80076603,0.00016299,2]
[364907239,1749291904785,-208.04215768,0.00016299,2]
[364907240,1749291906461,-170.97,0.00016299,2]
[364907241,1749291910014,-395.7956237,0.00016299,2]
[364907242,1749291912219,5562.0,0.000172,5]
[364907243,1749291912353,-150.39145259,0.00016299,2]
[364907244,1749291912377,-148.75669307,0.000166,2]
[364907245,1749291912725,2854.38660636,0.000159,2]
[364907246,1749291912748,2854.38660636,0.000159,2]
[364907247,1749291912772,2854.38660636,0.000159,2]
[364907248,1749291912794,2854.38660636,0.000159,2]
[364907249,1749291912816,2854.38660636,0.000159,2]
[364907250,1749291912838,2854.38660636,0.000159,2]
[364907251,1749291912866,2183.68036184,0.000159,2]
[364907252,1749291913955,-70.26666061,0.000166,2]
[364907253,1749291913980,-93.35674476,0.000166,3]
[364907254,1749291915560,-179.52772659,0.000166,3]
[364907255,1749291918504,-307.10800911,0.000166,3]
[364907256,1749291920540,670.70624452,9e-05,2]
[364907257,1749291920565,2854.38660636,9e-05,2]
[364907258,1749291920588,947.93434377,9e-05,2]
[364907259,1749291920627,-188.90280472,0.000166,3]
[364907260,1749291923817,-161.02097606,0.000166,3]
[364907261,1749291926630,-185.07772431,0.000166,3]
[364907262,1749291930006,-164.0,0.000166,3]
[364907263,1749291933930,-193.49448403,0.000166,3]
[364907264,1749291936199,-241.77988118,0.000166,3]
[364907265,1749291937931,1316.42643881,9e-05,2]
[364907266,1749291940218,-151.0,0.000166,3]
[364907267,1749291941911,-155.63266032,0.000166,3]
[364907268,1749291944010,-341.76959788,0.000166,3]
[364907269,1749291944758,2169.61971342,0.000172,5]
[364907275,1749291976525,1030.0,0.000169,5]
[364907289,1749292129687,-151.0,0.00016957,2]
[364907292,1749292142475,590.02582378,0.00015757,2]
[364907293,1749292142497,1338.83417622,0.00015757,2]
[364907297,1749292156828,-151.0,0.00016746,2]
[364907298,1749292157438,39.42808174,0.00016724,2]
[364907299,1749292161487,-111.57191826,0.00016724,2]
[364907303,1749292203785,1341.73,0.00017711,120]
[364907312,1749292231655,-250.0,0.00017334,2]
[364907313,1749292231665,-800.0,0.00017549,4]
[364907314,1749292231675,-316.44,0.00017637,2]
[364907315,1749292231687,-880.29,0.00017647,2]
[364907316,1749292231696,-311.93,0.00017666,2]
[364907317,1749292231706,-200.0,0.00017687,2]
[364907318,1749292231716,-153.88,0.00017687,2]
[364907319,1749292231726,-1095.02,0.00017691,2]
[364907320,1749292231736,-550.55,0.00017718,2]
[364907321,1749292231745,-367.34600831,0.00017824,2]
[364907322,1749292231755,-1200.0,0.00017914,2]
[364907323,1749292231765,-671.05470843,0.00017915,2]
[364907324,1749292231781,-4987.39529157,0.00017915,2]
[364907325,1749292231790,-178.56410587,0.00017936,2]
[364907326,1749292231802,-321.43589413,0.00017936,2]
[364907327,1749292231812,-150.0,0.00017937,2]
[364907328,1749292231821,-273.15,0.00017985,2]
[364907329,1749292231832,-132.79224068,0.00017992,2]
[364907330,1749292231844,-167.20775932,0.00017992,2]
[364907331,1749292231854,-799.32227911,0.00017993,2]
[364907332,1749292231866,-3640.24772089,0.00017993,2]
[364907333,1749292231876,-1928.86,0.00018021,2]
[364907334,1749292231885,-200.0,0.00018037,2]
[364907335,1749292231895,-477.0,0.00018038,2]
[364907336,1749292231904,-250.0,0.00018081,2]
[364907337,1749292231914,-593.0,0.00018084,2]
[364907338,1749292231924,-367.34600829,0.0001814,2]
[364907339,1749292231933,-500.0,0.00018158,2]
[364907340,1749292231943,-758.0,0.00018187,2]
[364907341,1749292231952,-815.0,0.00018278,2]
[364907342,1749292231963,-850.0,0.00018278,2]
[364907343,1749292231973,-1133.0,0.00018343,2]
[364907344,1749292231983,-250.0,0.00018388,2]
[364907345,1749292231993,-240.0,0.00018435,2]
[364907346,1749292232003,-367.34600829,0.00018456,2]
[364907347,1749292232013,-248.61,0.00018504,2]
[364907348,1749292232022,-164.91,0.00018542,2]
[364907349,1749292232032,-151.0,0.00018545,2]
[364907350,1749292232042,-24499.32676899,0.00018545,2]
[364907352,1749292232052,-930.05196323,0.00018555,2]
[364907354,1749292232061,-500.0,0.00018555,2]
[364907356,1749292232072,-500.0,0.00018555,2]
[364907358,1749292232084,-500.0,0.00018555,2]
[364907360,1749292232094,-500.0,0.00018555,2]
[364907362,1749292232103,-500.0,0.00018555,2]
[364907364,1749292232114,-500.0,0.00018555,2]
[364907366,1749292232124,-500.0,0.00018555,2]
[364907368,1749292232133,-500.0,0.00018555,2]
[364907371,1749292232143,-500.0,0.00018555,2]
[364907374,1749292232154,-500.0,0.00018555,2]
[364907377,1749292232164,-500.0,0.00018555,2]
[364907380,1749292232175,-500.0,0.00018555,2]
[364907382,1749292232184,-500.0,0.00018555,2]
[364907384,1749292232194,-500.0,0.00018555,2]
[364907386,1749292232203,-500.0,0.00018555,2]
[364907388,1749292232212,-500.0,0.00018555,2]
[364907390,1749292232222,-500.0,0.00018555,2]
[364907392,1749292232231,-433.04159119,0.00018555,2]
[364907394,1749292232241,-500.0,0.00018555,2]
[364907396,1749292232250,-500.0,0.00018555,2]
[364907398,1749292232259,-500.0,0.00018555,2]
[364907400,1749292232269,-500.0,0.00018555,2]
[364907402,1749292232279,-500.0,0.00018555,2]
[364907404,1749292232288,-500.0,0.00018555,2]
[364907406,1749292232298,-500.0,0.00018555,2]
[364907408,1749292232307,-500.0,0.00018555,2]
[364907410,1749292232317,-500.0,0.00018555,2]
[364907412,1749292232326,-500.0,0.00018555,2]
[364907414,1749292232335,-500.0,0.00018555,2]
[364907416,1749292232345,-500.0,0.00018555,2]
[364907418,1749292232354,-318.69344844,0.00018555,2]
[364907420,1749292232364,-500.0,0.00018555,2]
[364907421,1749292232373,-500.0,0.00018555,2]
[364907423,1749292232383,-500.0,0.00018555,2]
[364907425,1749292232392,-500.0,0.00018555,2]
[364907427,1749292232402,-500.0,0.00018555,2]
[364907429,1749292232411,-500.0,0.00018555,2]
[364907431,1749292232420,-500.0,0.00018555,2]
[364907433,1749292232430,-500.0,0.00018555,2]
[364907435,1749292232439,-500.0,0.00018555,2]
[364907437,1749292232448,-500.0,0.00018555,2]
[364907439,1749292232458,-500.0,0.00018555,2]
[364907441,1749292232467,-500.0,0.00018555,2]
[364907443,1749292232478,-500.0,0.00018555,2]
[364907445,1749292232488,-500.0,0.00018555,2]
[364907447,1749292232497,-500.0,0.00018555,2]
[364907449,1749292232507,-500.0,0.00018555,2]
[364907451,1749292232516,-500.0,0.00018555,2]
[364907453,1749292232526,-500.0,0.00018555,2]
[364907455,1749292232536,-500.0,0.00018555,2]
[364907457,1749292232546,-500.0,0.00018555,2]
[364907459,1749292232556,-500.0,0.00018555,2]
[364907461,1749292232566,-500.0,0.00018555,2]
[364907463,1749292232575,-500.0,0.00018555,2]
[364907465,1749292232584,-500.0,0.00018555,2]
[364907467,1749292232593,-500.0,0.00018555,2]
[364907469,1749292232603,-500.0,0.00018555,2]
[364907471,1749292232614,-500.0,0.00018555,2]
[364907472,1749292232623,-500.0,0.00018555,2]
[364907474,1749292232632,-500.0,0.00018555,2]
[364907476,1749292232642,-500.0,0.00018555,2]
[364907478,1749292232652,-500.0,0.00018555,2]
[364907480,1749292232663,-447.03532803,0.00018555,2]
[364907482,1749292232673,-500.0,0.00018555,2]
[364907484,1749292232682,-500.0,0.00018555,2]
[364907486,1749292232692,-500.0,0.00018555,2]
[364907488,1749292232701,-500.0,0.00018555,2]
[364907490,1749292232711,-500.0,0.00018555,2]
[364907492,1749292232721,-500.0,0.00018555,2]
[364907494,1749292232730,-500.0,0.00018555,2]
[364907496,1749292232740,-500.0,0.00018555,2]
[364907498,1749292232750,-500.0,0.00018555,2]
[364907500,1749292232760,-500.0,0.00018555,2]
[364907502,1749292232769,-500.0,0.00018555,2]
[364907504,1749292232780,-500.0,0.00018555,2]
[364907506,1749292232790,-500.0,0.00018555,2]
[364907508,1749292232799,-500.0,0.00018555,2]
[364907510,1749292232809,-500.0,0.00018555,2]
[364907512,1749292232819,-500.0,0.00018555,2]
[364907514,1749292232828,-500.0,0.00018555,2]
[364907516,1749292232838,-500.0,0.00018555,2]
[364907518,1749292232847,-500.0,0.00018555,2]
[364907520,1749292232857,-500.0,0.00018555,2]
[364907522,1749292232866,-500.0,0.00018555,2]
[364907524,1749292232876,-500.0,0.00018555,2]
[364907526,1749292232886,-500.0,0.00018555,2]
[364907528,1749292232896,-500.0,0.00018555,2]
[364907530,1749292232905,-500.0,0.00018555,2]
[364907531,1749292232915,-500.0,0.00018555,2]
[364907532,1749292232924,-500.0,0.00018555,2]
[364907533,1749292232933,-500.0,0.00018555,2]
[364907534,1749292232942,-500.0,0.00018555,2]
[364907535,1749292232952,-500.0,0.00018555,2]
[364907536,1749292232961,-500.0,0.00018555,2]
[364907537,1749292232972,-500.0,0.00018555,2]
[364907538,1749292232981,-500.0,0.00018555,2]
[364907539,1749292232991,-500.0,0.00018555,2]
[364907540,1749292233000,-500.0,0.00018555,2]
[364907542,1749292233009,-500.0,0.00018555,2]
[364907544,1749292233019,-500.0,0.00018555,2]
[364907546,1749292233028,-500.0,0.00018555,2]
[364907548,1749292233038,-500.0,0.00018555,2]
[364907550,1749292233047,-500.0,0.00018555,2]
[364907552,1749292233056,-500.0,0.00018555,2]
[364907554,1749292233066,-500.0,0.00018555,2]
[364907556,1749292233079,-500.0,0.00018555,2]
[364907558,1749292233088,-500.0,0.00018555,2]
[364907560,1749292233097,-500.0,0.00018555,2]
[364907562,1749292233107,-500.0,0.00018555,2]
[364907564,1749292233116,-500.0,0.00018555,2]
[364907566,1749292233126,-500.0,0.00018555,2]